[Event "Titled Tuesday Blitz December 20 Early 2022"]
[White "Pitcher, John"]
[Black "nikitakhoroshev"]
[WhiteFideId "411485"]
[WhiteElo "2210"]
[BlackElo "2709"]
[Result "1-0"]
[Round "04"]
[TimeControl "180+2"]
[Date "2022.12.20"]
[WhiteClock "0:00:06"]
[BlackClock "0:00:06"]

1. e4 {[%clk 0:03:00]}  e6 {[%clk 0:02:59]} 2. d4 {[%clk 0:03:00]}  d5 {[%clk 0:03:00]} 3. Nc3 {[%clk 0:03:01]}  dxe4 {[%clk 0:03:00]} 4. Nxe4 {[%clk 0:03:00]}  Nd7 {[%clk 0:03:00]} 5. Nf3 {[%clk 0:03:01]}  Ngf6 {[%clk 0:03:00]} 6. Bd3 {[%clk 0:03:01]}  Nxe4 {[%clk 0:02:58]} 7. Bxe4 {[%clk 0:03:02]}  Nf6 {[%clk 0:02:59]} 8. Bd3 {[%clk 0:03:03]}  c5 {[%clk 0:02:59]} 9. O-O {[%clk 0:02:58]}  cxd4 {[%clk 0:02:57]} 10. Nxd4 {[%clk 0:02:58]}  Bc5 {[%clk 0:02:58]} 11. Nb3 {[%clk 0:02:58]}  Bd6 {[%clk 0:02:58]} 12. Qf3 {[%clk 0:02:49]}  Qc7 {[%clk 0:02:51]} 13. h3 {[%clk 0:02:40]}  Bd7 {[%clk 0:02:50]} 14. Nd4 {[%clk 0:02:38]}  a6 {[%clk 0:02:44]} 15. Bg5 {[%clk 0:02:39]}  Bc6 {[%clk 0:02:24]} 16. Nxc6 {[%clk 0:02:36]}  Qxc6 {[%clk 0:02:25]} 17. Qxc6+ {[%clk 0:02:33]}  bxc6 {[%clk 0:02:26]} 18. Rfd1 {[%clk 0:02:16]}  Ke7 {[%clk 0:02:24]} 19. Rab1 {[%clk 0:02:10]}  a5 {[%clk 0:02:23]} 20. a4 {[%clk 0:01:47]}  h6 {[%clk 0:02:21]} 21. Bd2 {[%clk 0:01:41]}  Nd5 {[%clk 0:02:14]} 22. Re1 {[%clk 0:01:19]}  Rhb8 {[%clk 0:02:02]} 23. g3 {[%clk 0:01:18]}  Ra7 {[%clk 0:02:00]} 24. f4 {[%clk 0:01:18]}  g6 {[%clk 0:01:54]} 25. Kg2 {[%clk 0:01:17]}  h5 {[%clk 0:01:53]} 26. Kf3 {[%clk 0:01:17]}  Bb4 {[%clk 0:01:51]} 27. c3 {[%clk 0:01:14]}  Bd6 {[%clk 0:01:35]} 28. c4 {[%clk 0:01:07]}  Nb4 {[%clk 0:01:26]} 29. Be4 {[%clk 0:01:07]}  Bc5 {[%clk 0:01:20]} 30. Bc3 {[%clk 0:01:07]}  Rd8 {[%clk 0:01:18]} 31. Rbd1 {[%clk 0:01:06]}  Rad7 {[%clk 0:01:07]} 32. Rxd7+ {[%clk 0:01:05]}  Rxd7 {[%clk 0:01:08]} 33. Ke2 {[%clk 0:01:06]}  Bd4 {[%clk 0:01:01]} 34. Bxb4+ {[%clk 0:01:03]}  axb4 {[%clk 0:01:02]} 35. Bxc6 {[%clk 0:01:04]}  Rc7 {[%clk 0:00:59]} 36. Bb5 {[%clk 0:01:00]}  Bxb2 {[%clk 0:00:59]} 37. Kd3 {[%clk 0:00:46]}  Kd6 {[%clk 0:00:55]} 38. Kc2 {[%clk 0:00:41]}  Bd4 {[%clk 0:00:55]} 39. Re2 {[%clk 0:00:30]}  f6 {[%clk 0:00:53]} 40. Kb3 {[%clk 0:00:29]}  Bc3 {[%clk 0:00:49]} 41. Re3 {[%clk 0:00:29]}  e5 {[%clk 0:00:47]} 42. fxe5+ {[%clk 0:00:29]}  fxe5 {[%clk 0:00:47]} 43. Rd3+ {[%clk 0:00:29]}  Ke6 {[%clk 0:00:48]} 44. Rd8 {[%clk 0:00:25]}  e4 {[%clk 0:00:45]} 45. Re8+ {[%clk 0:00:25]}  Re7 {[%clk 0:00:41]} 46. Rxe7+ {[%clk 0:00:23]}  Kxe7 {[%clk 0:00:42]} 47. c5 {[%clk 0:00:23]}  e3 {[%clk 0:00:41]} 48. Bd3 {[%clk 0:00:22]}  Kd7 {[%clk 0:00:39]} 49. Kc4 {[%clk 0:00:22]}  Be1 {[%clk 0:00:32]} 50. g4 {[%clk 0:00:22]}  hxg4 {[%clk 0:00:33]} 51. hxg4 {[%clk 0:00:22]}  g5 {[%clk 0:00:31]} 52. a5 {[%clk 0:00:20]}  b3 {[%clk 0:00:31]} 53. a6 {[%clk 0:00:17]}  Kc7 {[%clk 0:00:27]} 54. Kxb3 {[%clk 0:00:16]}  Kb8 {[%clk 0:00:18]} 55. Kc4 {[%clk 0:00:15]}  Ka7 {[%clk 0:00:18]} 56. Kb5 {[%clk 0:00:14]}  Bg3 {[%clk 0:00:18]} 57. Kc6 {[%clk 0:00:13]}  Bf2 {[%clk 0:00:16]} 58. Kd6 {[%clk 0:00:12]}  Bg3+ {[%clk 0:00:16]} 59. Kd7 {[%clk 0:00:13]}  Kb8 {[%clk 0:00:15]} 60. c6 {[%clk 0:00:12]}  Bf4 {[%clk 0:00:14]} 61. Be2 {[%clk 0:00:11]}  Bg3 {[%clk 0:00:14]} 62. Ke6 {[%clk 0:00:10]}  Bf4 {[%clk 0:00:11]} 63. Kf5 {[%clk 0:00:10]}  Ka7 {[%clk 0:00:11]} 64. c7 {[%clk 0:00:08]}  Bxc7 {[%clk 0:00:11]} 65. Kxg5 {[%clk 0:00:09]}  Kb6 {[%clk 0:00:09]} 66. Kf5 {[%clk 0:00:07]}  Bd8 {[%clk 0:00:06]} 67. g5 {[%clk 0:00:06]} 1-0


[Site "https://www.chess.com"]

[Event "Titled Tuesday Blitz December 20 Early 2022"]
[White "Rakhmanov_Aleksandr"]
[Black "Manukyan_Artak"]
[WhiteElo "2797"]
[BlackElo "2560"]
[Result "1-0"]
[Round "04"]
[TimeControl "180+2"]
[Date "2022.12.20"]
[WhiteClock "0:00:01"]
[BlackClock "0:00:55"]

1. d4 {[%clk 0:03:00]}  d5 {[%clk 0:02:57]} 2. c4 {[%clk 0:03:00]}  dxc4 {[%clk 0:02:57]} 3. Nf3 {[%clk 0:02:59]}  Nf6 {[%clk 0:02:56]} 4. e3 {[%clk 0:02:58]}  e6 {[%clk 0:02:57]} 5. Bxc4 {[%clk 0:02:58]}  c5 {[%clk 0:02:57]} 6. O-O {[%clk 0:02:57]}  a6 {[%clk 0:02:56]} 7. e4 {[%clk 0:02:58]}  b5 {[%clk 0:02:49]} 8. Be2 {[%clk 0:02:56]}  Nxe4 {[%clk 0:02:46]} 9. a4 {[%clk 0:02:55]}  b4 {[%clk 0:02:42]} 10. Be3 {[%clk 0:02:55]}  Bb7 {[%clk 0:02:37]} 11. Nbd2 {[%clk 0:02:50]}  Nxd2 {[%clk 0:02:36]} 12. Qxd2 {[%clk 0:02:50]}  Nc6 {[%clk 0:02:25]} 13. Rfd1 {[%clk 0:02:11]}  cxd4 {[%clk 0:02:09]} 14. Nxd4 {[%clk 0:02:11]}  Nxd4 {[%clk 0:02:09]} 15. Bxd4 {[%clk 0:02:11]}  Be7 {[%clk 0:01:58]} 16. Qe3 {[%clk 0:01:52]}  Bd5 {[%clk 0:01:32]} 17. Bxg7 {[%clk 0:01:21]}  Rg8 {[%clk 0:01:32]} 18. Qh6 {[%clk 0:00:31]}  Qa5 {[%clk 0:01:31]} 19. Rac1 {[%clk 0:00:18]}  Bxg2 {[%clk 0:01:12]} 20. Kxg2 {[%clk 0:00:14]}  Qg5+ {[%clk 0:01:09]} 21. Qxg5 {[%clk 0:00:11]}  Bxg5 {[%clk 0:01:10]} 22. Rc7 {[%clk 0:00:09]}  Rxg7 {[%clk 0:01:05]} 23. Kf3 {[%clk 0:00:10]}  Rd8 {[%clk 0:01:00]} 24. Rxd8+ {[%clk 0:00:05]}  Bxd8 {[%clk 0:01:01]} 25. Rb7 {[%clk 0:00:03]}  f5 {[%clk 0:00:55]} 26. Rxg7 {[%clk 0:00:01]} 1-0


[Site "https://www.chess.com"]

[Event "Titled Tuesday Blitz December 20 Early 2022"]
[White "RamonManon0g"]
[Black "Ekat, Michael"]
[BlackFideId "4689801"]
[WhiteElo "2372"]
[BlackElo "2051"]
[Result "0-1"]
[Round "04"]
[TimeControl "180+2"]
[Date "2022.12.20"]
[WhiteClock "0:00:06"]
[BlackClock "0:00:05"]

1. e4 {[%clk 0:03:00]}  c6 {[%clk 0:02:59]} 2. d4 {[%clk 0:03:00]}  d5 {[%clk 0:02:59]} 3. e5 {[%clk 0:03:01]}  Bf5 {[%clk 0:02:58]} 4. Nd2 {[%clk 0:03:01]}  e6 {[%clk 0:02:57]} 5. Nb3 {[%clk 0:03:01]}  Nd7 {[%clk 0:02:56]} 6. Nf3 {[%clk 0:03:02]}  a6 {[%clk 0:02:56]} 7. c4 {[%clk 0:03:00]}  dxc4 {[%clk 0:02:49]} 8. Bxc4 {[%clk 0:02:59]}  Ne7 {[%clk 0:02:48]} 9. O-O {[%clk 0:02:59]}  Nd5 {[%clk 0:02:47]} 10. Bg5 {[%clk 0:02:58]}  Be7 {[%clk 0:02:46]} 11. Bxe7 {[%clk 0:02:58]}  Qxe7 {[%clk 0:02:46]} 12. Bxd5 {[%clk 0:02:48]}  cxd5 {[%clk 0:02:45]} 13. Rc1 {[%clk 0:02:49]}  Nb6 {[%clk 0:02:28]} 14. Nc5 {[%clk 0:02:44]}  O-O {[%clk 0:02:26]} 15. b3 {[%clk 0:02:37]}  Rac8 {[%clk 0:02:19]} 16. Qd2 {[%clk 0:02:38]}  Rc7 {[%clk 0:02:11]} 17. Qb4 {[%clk 0:02:34]}  Nc8 {[%clk 0:01:47]} 18. g3 {[%clk 0:02:31]}  Na7 {[%clk 0:01:43]} 19. Nh4 {[%clk 0:02:30]}  Bh3 {[%clk 0:01:33]} 20. Rfe1 {[%clk 0:02:29]}  Nc6 {[%clk 0:01:27]} 21. Qd2 {[%clk 0:02:13]}  Rfc8 {[%clk 0:01:22]} 22. Na4 {[%clk 0:02:00]}  b5 {[%clk 0:01:12]} 23. Nb2 {[%clk 0:01:45]}  Qb4 {[%clk 0:00:54]} 24. Rcd1 {[%clk 0:00:57]}  Qxd2 {[%clk 0:00:50]} 25. Rxd2 {[%clk 0:00:57]}  Nb4 {[%clk 0:00:48]} 26. Nd3 {[%clk 0:00:54]}  Nc2 {[%clk 0:00:42]} 27. Rb1 {[%clk 0:00:44]}  Nxd4 {[%clk 0:00:41]} 28. f4 {[%clk 0:00:29]}  h6 {[%clk 0:00:35]} 29. Nf2 {[%clk 0:00:25]}  Rc1+ {[%clk 0:00:25]} 30. Rd1 {[%clk 0:00:24]}  Rxb1 {[%clk 0:00:19]} 31. Rxb1 {[%clk 0:00:24]}  Bf5 {[%clk 0:00:19]} 32. Nxf5 {[%clk 0:00:22]}  Nxf5 {[%clk 0:00:19]} 33. Rb2 {[%clk 0:00:22]}  Rc1+ {[%clk 0:00:18]} 34. Kg2 {[%clk 0:00:22]}  d4 {[%clk 0:00:16]} 35. Kf3 {[%clk 0:00:21]}  Rc3+ {[%clk 0:00:15]} 36. Kg2 {[%clk 0:00:18]}  Ne3+ {[%clk 0:00:15]} 37. Kh3 {[%clk 0:00:18]}  Rc1 {[%clk 0:00:11]} 38. Ne4 {[%clk 0:00:18]}  d3 {[%clk 0:00:09]} 39. Rd2 {[%clk 0:00:17]}  Nf1 {[%clk 0:00:07]} 40. Rxd3 {[%clk 0:00:16]}  Rc2 {[%clk 0:00:07]} 41. Nd2 {[%clk 0:00:07]}  Nxd2 {[%clk 0:00:06]} 42. f5 {[%clk 0:00:07]}  exf5 {[%clk 0:00:06]} 43. Rd8+ {[%clk 0:00:06]}  Kh7 {[%clk 0:00:06]} 44. Rd7 {[%clk 0:00:06]}  Nf3 {[%clk 0:00:06]} 45. g4 {[%clk 0:00:06]}  f4 {[%clk 0:00:05]} 46. g5 {[%clk 0:00:05]}  Rxh2+ {[%clk 0:00:05]} 47. Kg4 {[%clk 0:00:05]}  Nxg5 {[%clk 0:00:04]} 48. Kxf4 {[%clk 0:00:06]}  Ne6+ {[%clk 0:00:05]} 49. Ke4 {[%clk 0:00:06]}  Kg6 {[%clk 0:00:05]} 0-1


[Site "https://www.chess.com"]

[Event "Titled Tuesday Blitz December 20 Early 2022"]
[White "Rostolis, Riccardo"]
[Black "FaustinoOro"]
[WhiteFideId "819948"]
[WhiteElo "1968"]
[BlackElo "2633"]
[Result "0-1"]
[Round "04"]
[TimeControl "180+2"]
[Date "2022.12.20"]
[WhiteClock "0:00:03"]
[BlackClock "0:00:09"]

1. e4 {[%clk 0:03:00]}  c5 {[%clk 0:02:58]} 2. Nc3 {[%clk 0:03:00]}  Nc6 {[%clk 0:02:58]} 3. Bb5 {[%clk 0:03:00]}  g6 {[%clk 0:02:55]} 4. Bxc6 {[%clk 0:03:00]}  dxc6 {[%clk 0:02:55]} 5. d3 {[%clk 0:02:59]}  Bg7 {[%clk 0:02:54]} 6. f4 {[%clk 0:02:59]}  Nf6 {[%clk 0:02:53]} 7. Nf3 {[%clk 0:02:59]}  O-O {[%clk 0:02:52]} 8. O-O {[%clk 0:02:59]}  Nd7 {[%clk 0:02:50]} 9. Qe1 {[%clk 0:02:54]}  b6 {[%clk 0:02:49]} 10. Qh4 {[%clk 0:02:39]}  e5 {[%clk 0:02:40]} 11. Qg3 {[%clk 0:02:37]}  exf4 {[%clk 0:02:38]} 12. Bxf4 {[%clk 0:02:36]}  Ba6 {[%clk 0:02:27]} 13. Qh3 {[%clk 0:02:05]}  Qe7 {[%clk 0:02:11]} 14. Rae1 {[%clk 0:01:58]}  Rae8 {[%clk 0:01:52]} 15. Qg3 {[%clk 0:01:30]}  Ne5 {[%clk 0:01:29]} 16. Nxe5 {[%clk 0:01:29]}  Bxe5 {[%clk 0:01:29]} 17. Bxe5 {[%clk 0:01:28]}  Qxe5 {[%clk 0:01:30]} 18. Qxe5 {[%clk 0:01:29]}  Rxe5 {[%clk 0:01:30]} 19. Rf6 {[%clk 0:01:29]}  Bb7 {[%clk 0:01:26]} 20. Ref1 {[%clk 0:01:28]}  Kg7 {[%clk 0:01:23]} 21. b3 {[%clk 0:01:17]}  Re7 {[%clk 0:01:08]} 22. Nd1 {[%clk 0:01:00]}  Rd8 {[%clk 0:01:02]} 23. Ne3 {[%clk 0:00:55]}  Rdd7 {[%clk 0:00:50]} 24. g4 {[%clk 0:00:54]}  h6 {[%clk 0:00:46]} 25. Kg2 {[%clk 0:00:50]}  Rc7 {[%clk 0:00:39]} 26. Kg3 {[%clk 0:00:49]}  Bc8 {[%clk 0:00:39]} 27. h4 {[%clk 0:00:46]}  Be6 {[%clk 0:00:38]} 28. h5 {[%clk 0:00:41]}  b5 {[%clk 0:00:29]} 29. R6f2 {[%clk 0:00:23]}  a5 {[%clk 0:00:23]} 30. hxg6 {[%clk 0:00:17]}  fxg6 {[%clk 0:00:22]} 31. Rf8 {[%clk 0:00:17]}  Rc8 {[%clk 0:00:15]} 32. Rxc8 {[%clk 0:00:14]}  Bxc8 {[%clk 0:00:16]} 33. Rf4 {[%clk 0:00:12]}  Bd7 {[%clk 0:00:11]} 34. Kf3 {[%clk 0:00:09]}  Re5 {[%clk 0:00:11]} 35. Kg3 {[%clk 0:00:07]}  h5 {[%clk 0:00:11]} 36. gxh5 {[%clk 0:00:05]}  Rxh5 {[%clk 0:00:12]} 37. Ng2 {[%clk 0:00:04]}  Rh3+ {[%clk 0:00:11]} 38. Kf2 {[%clk 0:00:04]}  Rh1 {[%clk 0:00:10]} 39. Ne1 {[%clk 0:00:03]}  Rh2+ {[%clk 0:00:10]} 40. Ng2 {[%clk 0:00:03]}  Bh3 {[%clk 0:00:09]} 0-1


[Site "https://www.chess.com"]

[Event "Titled Tuesday Blitz December 20 Early 2022"]
[White "SHIVACalypso"]
[Black "deibittowers"]
[WhiteElo "2418"]
[BlackElo "2072"]
[Result "0-1"]
[Round "04"]
[TimeControl "180+2"]
[Date "2022.12.20"]
[WhiteClock "0:00:05"]
[BlackClock "0:00:23"]

1. e4 {[%clk 0:03:00]}  Nc6 {[%clk 0:02:59]} 2. d4 {[%clk 0:02:59]}  e5 {[%clk 0:02:56]} 3. d5 {[%clk 0:02:56]}  Nce7 {[%clk 0:02:56]} 4. Nf3 {[%clk 0:02:42]}  Ng6 {[%clk 0:02:55]} 5. h4 {[%clk 0:02:42]}  h5 {[%clk 0:02:49]} 6. Nc3 {[%clk 0:02:34]}  Nf6 {[%clk 0:02:41]} 7. Bg5 {[%clk 0:02:32]}  Bb4 {[%clk 0:02:36]} 8. Qd3 {[%clk 0:02:28]}  O-O {[%clk 0:02:27]} 9. a3 {[%clk 0:02:19]}  Be7 {[%clk 0:02:16]} 10. O-O-O {[%clk 0:02:13]}  Ng4 {[%clk 0:02:10]} 11. Bxe7 {[%clk 0:02:06]}  Qxe7 {[%clk 0:02:04]} 12. Qd2 {[%clk 0:02:05]}  Qc5 {[%clk 0:01:56]} 13. b4 {[%clk 0:00:55]}  Qxf2 {[%clk 0:01:48]} 14. Nb5 {[%clk 0:00:55]}  d6 {[%clk 0:01:42]} 15. Nxc7 {[%clk 0:00:48]}  Rb8 {[%clk 0:01:42]} 16. Nb5 {[%clk 0:00:28]}  Qb6 {[%clk 0:01:42]} 17. Re1 {[%clk 0:00:24]}  a6 {[%clk 0:01:38]} 18. Nc3 {[%clk 0:00:21]}  Bd7 {[%clk 0:01:38]} 19. g3 {[%clk 0:00:17]}  Rbc8 {[%clk 0:01:24]} 20. Kb2 {[%clk 0:00:17]}  Rc7 {[%clk 0:01:20]} 21. Bh3 {[%clk 0:00:16]}  Rfc8 {[%clk 0:01:18]} 22. Nd1 {[%clk 0:00:12]}  Rxc2+ {[%clk 0:01:08]} 23. Qxc2 {[%clk 0:00:12]}  Rxc2+ {[%clk 0:01:07]} 24. Kxc2 {[%clk 0:00:13]}  Ba4+ {[%clk 0:01:00]} 25. Kb2 {[%clk 0:00:13]}  Nf2 {[%clk 0:00:48]} 26. Nc3 {[%clk 0:00:07]}  Nd3+ {[%clk 0:00:44]} 27. Ka2 {[%clk 0:00:03]}  Nxe1 {[%clk 0:00:37]} 28. Nxa4 {[%clk 0:00:04]}  Qf2+ {[%clk 0:00:35]} 29. Ka1 {[%clk 0:00:03]}  Nc2+ {[%clk 0:00:31]} 30. Kb2 {[%clk 0:00:04]}  Nd4+ {[%clk 0:00:31]} 31. Ka1 {[%clk 0:00:04]}  Qxf3 {[%clk 0:00:29]} 32. Rc1 {[%clk 0:00:03]}  Qxa3+ {[%clk 0:00:28]} 33. Kb1 {[%clk 0:00:04]}  Qxa4 {[%clk 0:00:26]} 34. Rc8+ {[%clk 0:00:04]}  Nf8 {[%clk 0:00:24]} 35. Bf5 {[%clk 0:00:05]}  Nxf5 {[%clk 0:00:23]} 36. exf5 {[%clk 0:00:05]}  Qxb4+ {[%clk 0:00:23]} 0-1


[Site "https://www.chess.com"]

[Event "Titled Tuesday Blitz December 20 Early 2022"]
[White "Sadykov_Ramil"]
[Black "romulocardoso"]
[WhiteElo "2546"]
[BlackElo "2390"]
[Result "0-1"]
[Round "04"]
[TimeControl "180+2"]
[Date "2022.12.20"]
[WhiteClock "0:00:01"]
[BlackClock "0:00:06"]

1. e4 {[%clk 0:02:49]}  c5 {[%clk 0:02:59]} 2. Nf3 {[%clk 0:02:48]}  g6 {[%clk 0:03:00]} 3. d4 {[%clk 0:02:43]}  cxd4 {[%clk 0:03:01]} 4. Nxd4 {[%clk 0:02:44]}  Nc6 {[%clk 0:03:01]} 5. c4 {[%clk 0:02:43]}  Bg7 {[%clk 0:03:00]} 6. Nc2 {[%clk 0:02:43]}  Nf6 {[%clk 0:03:00]} 7. Nc3 {[%clk 0:02:44]}  O-O {[%clk 0:03:00]} 8. Be3 {[%clk 0:02:43]}  d6 {[%clk 0:03:00]} 9. Be2 {[%clk 0:02:43]}  Be6 {[%clk 0:03:01]} 10. O-O {[%clk 0:02:43]}  Rc8 {[%clk 0:03:01]} 11. f3 {[%clk 0:02:42]}  Nd7 {[%clk 0:02:57]} 12. Qd2 {[%clk 0:02:40]}  Nb6 {[%clk 0:02:55]} 13. b3 {[%clk 0:02:37]}  Na5 {[%clk 0:02:46]} 14. Nd4 {[%clk 0:02:32]}  Bxc4 {[%clk 0:02:00]} 15. bxc4 {[%clk 0:02:24]}  Naxc4 {[%clk 0:02:01]} 16. Qd3 {[%clk 0:02:17]}  Nxe3 {[%clk 0:02:00]} 17. Qxe3 {[%clk 0:02:18]}  Nc4 {[%clk 0:01:56]} 18. Bxc4 {[%clk 0:02:13]}  Rxc4 {[%clk 0:01:57]} 19. Nce2 {[%clk 0:01:56]}  Qb6 {[%clk 0:01:50]} 20. Rfd1 {[%clk 0:01:55]}  e5 {[%clk 0:01:50]} 21. Rab1 {[%clk 0:01:45]}  exd4 {[%clk 0:01:32]} 22. Rxb6 {[%clk 0:01:19]}  dxe3 {[%clk 0:01:32]} 23. Rxb7 {[%clk 0:01:18]}  Rc2 {[%clk 0:01:32]} 24. Kf1 {[%clk 0:01:18]}  Rxa2 {[%clk 0:01:30]} 25. Rc1 {[%clk 0:00:41]}  a5 {[%clk 0:01:10]} 26. Rcc7 {[%clk 0:00:39]}  a4 {[%clk 0:01:10]} 27. g4 {[%clk 0:00:29]}  a3 {[%clk 0:00:57]} 28. Ra7 {[%clk 0:00:27]}  Be5 {[%clk 0:00:18]} 29. f4 {[%clk 0:00:27]}  Bg7 {[%clk 0:00:18]} 30. h4 {[%clk 0:00:28]}  Bb2 {[%clk 0:00:10]} 31. Rc2 {[%clk 0:00:21]}  Ra1+ {[%clk 0:00:10]} 32. Kg2 {[%clk 0:00:21]}  Rb8 {[%clk 0:00:10]} 33. Kf3 {[%clk 0:00:19]}  a2 {[%clk 0:00:09]} 34. Kxe3 {[%clk 0:00:05]}  Rb3+ {[%clk 0:00:09]} 35. Kd2 {[%clk 0:00:04]}  Rb4 {[%clk 0:00:04]} 36. Ke3 {[%clk 0:00:03]}  Rb3+ {[%clk 0:00:04]} 37. Kf2 {[%clk 0:00:04]}  Rb8 {[%clk 0:00:05]} 38. Ra4 {[%clk 0:00:03]}  Rb3 {[%clk 0:00:05]} 39. Kg2 {[%clk 0:00:02]}  Kg7 {[%clk 0:00:06]} 40. f5 {[%clk 0:00:01]}  Rb5 {[%clk 0:00:05]} 41. Kf2 {[%clk 0:00:01]}  d5 {[%clk 0:00:06]} 42. exd5 {[%clk 0:00:01]}  Rxd5 {[%clk 0:00:07]} 43. Nf4 {[%clk 0:00:01]}  Rd4 {[%clk 0:00:07]} 44. Rxd4 {[%clk 0:00:01]}  Bxd4+ {[%clk 0:00:07]} 45. Ke2 {[%clk 0:00:01]}  Rh1 {[%clk 0:00:06]} 0-1


[Site "https://www.chess.com"]

[Event "Titled Tuesday Blitz December 20 Early 2022"]
[White "Salomez, Maxime"]
[Black "Noshin, Anjum"]
[WhiteFideId "652079600"]
[BlackFideId "10218564"]
[WhiteElo "1359"]
[BlackElo "1946"]
[Result "1-0"]
[Round "04"]
[TimeControl "180+2"]
[Date "2022.12.20"]
[WhiteClock "0:00:02"]
[BlackClock "0:00:01"]

1. e4 {[%clk 0:02:56]}  e5 {[%clk 0:02:52]} 2. Nf3 {[%clk 0:02:55]}  Nc6 {[%clk 0:02:45]} 3. Bc4 {[%clk 0:02:53]}  Nf6 {[%clk 0:02:43]} 4. d3 {[%clk 0:02:53]}  Bc5 {[%clk 0:02:41]} 5. Nbd2 {[%clk 0:02:51]}  d6 {[%clk 0:02:39]} 6. h3 {[%clk 0:02:50]}  a6 {[%clk 0:02:39]} 7. a4 {[%clk 0:02:42]}  h6 {[%clk 0:02:37]} 8. c3 {[%clk 0:02:42]}  a5 {[%clk 0:02:28]} 9. Bb3 {[%clk 0:02:41]}  Qe7 {[%clk 0:02:19]} 10. Nf1 {[%clk 0:02:40]}  Be6 {[%clk 0:02:18]} 11. Ne3 {[%clk 0:02:33]}  Rd8 {[%clk 0:02:10]} 12. g4 {[%clk 0:02:21]}  d5 {[%clk 0:02:09]} 13. exd5 {[%clk 0:01:59]}  Nxd5 {[%clk 0:02:08]} 14. O-O {[%clk 0:01:44]}  Nxe3 {[%clk 0:02:01]} 15. fxe3 {[%clk 0:01:35]}  O-O {[%clk 0:01:47]} 16. d4 {[%clk 0:01:30]}  Bxb3 {[%clk 0:01:33]} 17. Qxb3 {[%clk 0:01:28]}  e4 {[%clk 0:01:12]} 18. Ne1 {[%clk 0:01:06]}  Bd6 {[%clk 0:00:58]} 19. Ng2 {[%clk 0:01:05]}  b6 {[%clk 0:00:52]} 20. Bd2 {[%clk 0:01:05]}  Qe6 {[%clk 0:00:32]} 21. Qxe6 {[%clk 0:00:58]}  fxe6 {[%clk 0:00:33]} 22. Nf4 {[%clk 0:00:38]}  e5 {[%clk 0:00:29]} 23. Ne6 {[%clk 0:00:18]}  Rxf1+ {[%clk 0:00:30]} 24. Rxf1 {[%clk 0:00:18]}  Re8 {[%clk 0:00:30]} 25. d5 {[%clk 0:00:19]}  Ne7 {[%clk 0:00:28]} 26. c4 {[%clk 0:00:19]}  c6 {[%clk 0:00:24]} 27. g5 {[%clk 0:00:06]}  hxg5 {[%clk 0:00:16]} 28. Nxg5 {[%clk 0:00:05]}  cxd5 {[%clk 0:00:16]} 29. Nf7 {[%clk 0:00:05]}  Bb8 {[%clk 0:00:13]} 30. Bc3 {[%clk 0:00:05]}  dxc4 {[%clk 0:00:11]} 31. Nxe5 {[%clk 0:00:05]}  Bxe5 {[%clk 0:00:10]} 32. Bxe5 {[%clk 0:00:05]}  Nc6 {[%clk 0:00:10]} 33. Bc3 {[%clk 0:00:04]}  Rd8 {[%clk 0:00:09]} 34. Rf4 {[%clk 0:00:04]}  Re8 {[%clk 0:00:07]} 35. Rg4 {[%clk 0:00:03]}  Re7 {[%clk 0:00:07]} 36. Rg6 {[%clk 0:00:04]}  Ne5 {[%clk 0:00:04]} 37. Rxb6 {[%clk 0:00:03]}  Nf3+ {[%clk 0:00:03]} 38. Kf2 {[%clk 0:00:03]}  Nh4 {[%clk 0:00:01]} 39. Rb8+ {[%clk 0:00:02]} 1-0


[Site "https://www.chess.com"]

[Event "Titled Tuesday Blitz December 20 Early 2022"]
[White "Schless, Sebastian"]
[Black "Rud_Makarian"]
[WhiteFideId "4697987"]
[WhiteElo "2056"]
[BlackElo "2889"]
[Result "1-0"]
[Round "04"]
[TimeControl "180+2"]
[Date "2022.12.20"]
[WhiteClock "0:00:29"]
[BlackClock "0:00:03"]

1. e4 {[%clk 0:02:59]}  d6 {[%clk 0:02:58]} 2. Nc3 {[%clk 0:02:58]}  Nf6 {[%clk 0:02:58]} 3. f4 {[%clk 0:02:58]}  c5 {[%clk 0:02:56]} 4. Nf3 {[%clk 0:02:58]}  Nc6 {[%clk 0:02:53]} 5. Bb5 {[%clk 0:02:58]}  Bd7 {[%clk 0:02:53]} 6. O-O {[%clk 0:02:58]}  a6 {[%clk 0:02:51]} 7. Bxc6 {[%clk 0:02:57]}  Bxc6 {[%clk 0:02:52]} 8. d3 {[%clk 0:02:56]}  e6 {[%clk 0:02:51]} 9. Qe1 {[%clk 0:02:56]}  Be7 {[%clk 0:02:51]} 10. Qg3 {[%clk 0:02:54]}  g6 {[%clk 0:02:47]} 11. Bd2 {[%clk 0:02:51]}  b5 {[%clk 0:02:46]} 12. Kh1 {[%clk 0:02:48]}  b4 {[%clk 0:02:43]} 13. Nd1 {[%clk 0:02:45]}  a5 {[%clk 0:02:43]} 14. Ne3 {[%clk 0:02:44]}  Qc7 {[%clk 0:02:37]} 15. a3 {[%clk 0:02:41]}  Nh5 {[%clk 0:02:20]} 16. Qf2 {[%clk 0:02:25]}  f5 {[%clk 0:01:31]} 17. exf5 {[%clk 0:02:07]}  gxf5 {[%clk 0:01:21]} 18. Nc4 {[%clk 0:02:02]}  Bd5 {[%clk 0:01:05]} 19. Rae1 {[%clk 0:01:58]}  Qb7 {[%clk 0:01:02]} 20. Ng5 {[%clk 0:01:47]}  Rg8 {[%clk 0:00:47]} 21. Ne3 {[%clk 0:01:47]}  Bc6 {[%clk 0:00:30]} 22. Nxe6 {[%clk 0:01:34]}  h6 {[%clk 0:00:30]} 23. d4 {[%clk 0:01:10]}  Bh4 {[%clk 0:00:20]} 24. Ng7+ {[%clk 0:01:02]}  Rxg7 {[%clk 0:00:13]} 25. Qxh4 {[%clk 0:01:02]}  Kf8 {[%clk 0:00:11]} 26. d5 {[%clk 0:00:45]}  Bxd5 {[%clk 0:00:11]} 27. Rf2 {[%clk 0:00:46]}  Bf7 {[%clk 0:00:07]} 28. Nxf5 {[%clk 0:00:45]}  Rg6 {[%clk 0:00:04]} 29. Rfe2 {[%clk 0:00:35]}  Nf6 {[%clk 0:00:04]} 30. Nxd6 {[%clk 0:00:34]}  Qd5 {[%clk 0:00:03]} 31. f5 {[%clk 0:00:31]}  Rg4 {[%clk 0:00:03]} 32. Qxf6 {[%clk 0:00:29]} 1-0


[Site "https://www.chess.com"]